Cogmind - Beta 13 *** ADVENTURER MODE // 2024.04.22 @ 09:55:27 Player: Phil Result: Self-destructed Performance ------------- Evolutions (2) 1000 Regions Visited (3) 600 Robots Destroyed (21) 105 Value Destroyed (533) 533 Prototype IDs (0) 0 Alien Tech Used (0) 0 Bonus (0) 0 TOTAL SCORE: 2238 Bonus ------- None Cogmind --------- Core Integrity 298/550 Matter 324/450 Energy 100/100 System Corruption 0% Temperature Cool (0) Movement Core (750) Ox14 Location -8/Materials Parts ------- > --- POWER (1) -------- (None) > --- PROPULSION (4) --- (None) > --- UTILITY (3) ------ High-capacity Storage Unit Large Matter Pod > --- WEAPON (3) ------- (None) > --- INVENTORY (20) --- Compact Matter Pod (2) Weight Redist. System Terrain Scan Processor Targeting Computer Reaction Control System Improved Datajack Peak State ------------ > --- POWER ------------ Light Ion Engine > --- PROPULSION ------- Improved Hover Unit Improved Hover Unit Improved Hover Unit Improved Hover Unit > --- UTILITY ---------- High-capacity Storage Unit Large Matter Pod Targeting Computer > --- WEAPON ----------- Assault Rifle Light Assault Rifle Grenade Launcher > --- INVENTORY -------- Ion Engine Compact Matter Pod Weight Redist. System Terrain Scan Processor Targeting Computer Reaction Control System [Rating: 16] Favorites ----------- Power Light Ion Engine Engine Light Ion Engine Propulsion Improved Hover Unit Leg Aluminum Leg Hover Unit Improved Hover Unit Utility High-capacity Storage Unit Storage High-capacity Storage Unit Processor Targeting Computer Weapon Light Assault Rifle Energy Gun Small Laser Ballistic Gun Light Assault Rifle Ballistic Cannon Flak Cannon Launcher Grenade Launcher Special Melee Weapon Improved Datajack Build | -11 -10 -9 -8 ------- Run | Yrd Mat Mat Mat Slots Evolved 4 | . . 2 2 Power . | . . . . Propulsion 2 | . . 1 1 Utility 1 | . . 1 . Weapon 1 | . . . 1 Parts Attached 21 | 5 5 5 6 Power 2 | 1 . . 1 Engine 2 | 1 . . 1 Core . | . . . . Reactor . | . . . . Propulsion 7 | 2 . 4 1 Treads . | . . . . Leg 3 | 2 . 1 . Wheel . | . . . . Hover 4 | . . 3 1 Flight . | . . . . Utility 3 | . 2 1 . Device . | . . . . Storage 2 | . 2 . . Processor 1 | . . 1 . Hackware . | . . . . Protection . | . . . . Artifact . | . . . . Weapon 9 | 2 3 . 4 Energy Gun 2 | 1 1 . . Energy Cannon . | . . . . Ballistic Gun 3 | 1 2 . . Ballistic Cannon 2 | . . . 2 Launcher 1 | . . . 1 Special Weapon . | . . . . Impact Weapon . | . . . . Slashing Weapon . | . . . . Piercing Weapon . | . . . . Special Melee Weapon 1 | . . . 1 Unidentified Prototypes . | . . . . Parts Lost 11 | . . . 11 Power 2 | . . . 2 Propulsion 4 | . . . 4 Utility 1 | . . . 1 Weapon 4 | . . . 4 Highest Loss Streak 9 | . . . 9 To Critical Strikes . | . . . . Average Slot Usage (%) 93 | . 94 100 77 Engine 11 | . 14 11 8 Leg 9 | . 28 3 . Hover 20 | . . 29 26 Storage 21 | . 22 22 18 Processor 6 | . . 11 3 Energy Gun 1 | . 5 . . Ballistic Gun 19 | . 22 22 12 Launcher 1 | . . . 6 Naked Turns . | . . . . Heaviest Build 54 | 5 49 49 54 Greatest Support 30 | 20 20 30 28 Greatest Overweight (x) 17 | . 2 2 17 Average Overweight (x) 1 | . 1 1 1 Largest Inventory Capacity 20 | 5 20 20 20 Average Capacity 18 | 5 17 20 20 Most Carried 7 | 3 6 7 7 Average Carried 4 | 1 4 5 6 Final Capacity 20 | 5 20 20 20 Final Carried 6 | 3 5 6 6 Class Distribution -------------------- 87% | Mutant 12% | Gunner Dominant Class ---------------- Mutant | -10/Materials Mutant | -9/Materials Gunner | -8/Materials Resources | -11 -10 -9 -8 ----------- Run | Yrd Mat Mat Mat Matter Collected 646 | 252 200 57 137 Remotely . | . . . . Salvage Created 644 | 33 87 207 317 Parts 47 | 2 4 11 30 Haulers Intercepted . | . . . . Recyclers Shooed 2 | . 1 . 1 Parts Field Recycled . | . . . . Retrieved Matter . | . . . . Parts Self-Destructed . | . . . . Prevented . | . . . . Kills | -11 -10 -9 -8 ------- Run | Yrd Mat Mat Mat Combat Hostiles Destroyed 15 | 1 2 4 8 Guns 9 | 1 2 4 2 Cannons 2 | . . . 2 AOE 4 | . . . 4 Classes Destroyed 7 | 1 . 2 4 Worker 1 | . . . 1 Builder 4 | . . . 4 Recycler 1 | . . . 1 Swarmer 4 | . . . 4 Grunt 8 | 1 2 1 4 Brawler 1 | . . 1 . Sentry 2 | . . 2 . Best Kill Streak 10 | 1 2 4 10 Combat Bots Only 4 | 1 2 4 4 Max Kills in Single Turn 2 | 1 1 1 2 Gunslinging . | . . . . Exploded 2 | . . . 2 Melee . | . . . . Uniques/NPCs Destroyed . | . . . . Combat | -11 -10 -9 -8 -------- Run | Yrd Mat Mat Mat Hostile Shots Fired 146 | 3 8 26 109 Missed 38 | . 2 7 29 Damage Taken 1309 | 24 111 215 959 Core 319 | . 20 47 252 Absorbed by Shields . | . . . . Ignored by Resistances 373 | 7 31 60 275 Core Remaining (%) 93 | 100 92 88 . Volleys Fired 47 | 2 5 15 25 Largest 3 | 2 2 2 3 Hottest 80 | 60 80 40 70 Shots Fired 92 | 4 10 30 48 Gun 75 | 4 10 30 31 Cannon 7 | . . . 7 Launcher 10 | . . . 10 Special . | . . . . Kinetic 70 | 2 . 30 38 Thermal 12 | 2 10 . . Explosive 10 | . . . 10 Electromagnetic . | . . . . Robot Hit Streak 16 | 2 7 16 10 Robot Miss Streak 2 | 1 1 2 2 Penetration Max . | . . . . Secondary Targets 2 | . . 2 . Max Gunslinging Chain 1 | . . 1 . Shots Hit Robots 65 | 3 9 24 29 Core Hits 47 | 2 5 11 29 Critical Kills . | . . . . Critical Parts Destroyed . | . . . . Critical Strikes . | . . . . Melee Attacks 3 | . . . 3 Impact . | . . . . Slashing . | . . . . Piercing . | . . . . Sneak Attacks . | . . . . Combat Hostiles . | . . . . Follow-up Attacks . | . . . . Damage Inflicted 1390 | 26 98 268 998 Guns 576 | 26 95 268 187 Cannons 166 | . . . 166 Explosions 645 | . . . 645 Melee . | . . . . Ramming 3 | . 3 . . Kinetic 636 | 15 . 268 353 Thermal 106 | 11 95 . . Explosive 645 | . . . 645 Electromagnetic . | . . . . Impact . | . . . . Slashing . | . . . . Piercing . | . . . . Highest Corruption . | . . . . Average Corruption . | . . . . Corruption Purged . | . . . . Corruption Blocked . | . . . . Overload Shots . | . . . . Overflow Damage 31 | . . . 31 Projectiles . | . . . . Explosions 31 | . . . 31 Melee . | . . . . Knockbacks 3 | . . . 3 Impact . | . . . . Kinetic 2 | . . . 2 Secondary 1 | . . . 1 Self-Inflicted Damage 24 | . . . 24 Shots 1 | . . . 1 Rammed . | . . . . Targets Rammed 1 | . 1 . . Kicked 1 | . 1 . . Crushed . | . . . . Highest Temperature 132 | 26 132 18 41 Average Temperature 26 | 14 71 11 10 Received Heat Transfer 690 | 18 48 102 522 Siege Activations . | . . . . Robots Corrupted . | . . . . Combat Hostiles . | . . . . Parts Fried . | . . . . Impact Corruptions . | . . . . Robots Melted . | . . . . Combat Hostiles . | . . . . Parts Melted 1 | . 1 . . Heat Transferred 250 | 25 225 . . Parts Sabotaged . | . . . . Parts Stolen . | . . . . Parts Stripped . | . . . . Power Chain Reactions . | . . . . Alert | -11 -10 -9 -8 ------- Run | Yrd Mat Mat Mat Peak Influence 258 | 20 76 95 258 Initial 34 | . 11 27 34 Average 65 | 3 69 50 117 Maximum Alert Level 1 | . . . 1 Low Security (%) 93 | 100 100 100 64 Level 1 6 | . . . 35 Level 2 . | . . . . Level 3 . | . . . . Level 4 . | . . . . Level 5 . | . . . . High Security . | . . . . Max Security . | . . . . Squads Dispatched 2 | . . . 2 Investigation . | . . . . Extermination . | . . . . Reinforcement 2 | . . . 2 Assault . | . . . . Garrison . | . . . . Intercept . | . . . . Searches Triggered . | . . . . Construction Impeded 1 | . . . 1 Haulers Reinforced . | . . . . Active Scanning Responses . | . . . . Cargo Convoy Interrupts . | . . . . Stealth | -11 -10 -9 -8 --------- Run | Yrd Mat Mat Mat Distress Signals . | . . . . Communications Jammed . | . . . . Distress Signals . | . . . . Times Spotted 26 | 1 3 6 16 Peak Tracking Total 5 | 1 2 4 5 Tactical Retreats . | . . . . Traps | -11 -10 -9 -8 ------- Run | Yrd Mat Mat Mat Traps Triggered 2 | . 2 . . Indirectly . | . . . . Trap Hack Attempts . | . . . . Triggered . | . . . . Disarmed . | . . . . Reprogrammed . | . . . . Reused . | . . . . Traps Extracted . | . . . . Installed . | . . . . Triggered . | . . . . Machines | -11 -10 -9 -8 ---------- Run | Yrd Mat Mat Mat Machines Disabled . | . . . . Max in Single Turn . | . . . . Machines Repaired . | . . . . Machines Dismantled . | . . . . Machines Sabotaged . | . . . . Overloaded Fab Kills . | . . . . Hacking | -11 -10 -9 -8 --------- Run | Yrd Mat Mat Mat Machines Accessed 3 | . 3 . . Terminals 3 | . 3 . . Fabricators . | . . . . Repair Stations . | . . . . Recycling Units . | . . . . Scanalyzers . | . . . . Garrison Access . | . . . . Total Hacks 6 | . 6 . . Successful 3 | . 3 . . Failed 3 | . 3 . . Catastrophic . | . . . . Database Lockouts . | . . . . Manual . | . . . . Terminals 6 | . 6 . . Fabricators . | . . . . Repair Stations . | . . . . Recycling Units . | . . . . Scanalyzers . | . . . . Garrison Access . | . . . . Terminal Hacks 3 | . 3 . . Record 1 | . 1 . . Alert Level 1 | . 1 . . Zone Layout 1 | . 1 . . Fabricator Hacks . | . . . . Repair Station Hacks . | . . . . Recycling Unit Hacks . | . . . . Scanalyzer . | . . . . Garrison Access Hacks . | . . . . Unauthorized Hacks . | . . . . Terminals . | . . . . Fabricators . | . . . . Repair Stations . | . . . . Recycling Units . | . . . . Scanalyzers . | . . . . Garrison Access . | . . . . Data Cores Recovered . | . . . . Used . | . . . . Hacking Detections 1 | . 1 . . Full Trace Events . | . . . . Feedback Events . | . . . . Feedback Blocked . | . . . . Robot Schematics Acquired . | . . . . Robots Built . | . . . . Authchips . | . . . . Time . | . . . . Total Robot Build Rating . | . . . . Part Schematics Acquired . | . . . . Parts Built . | . . . . Authchips . | . . . . Time . | . . . . Total Part Build Rating . | . . . . Parts Repaired . | . . . . Time . | . . . . Parts Recycled . | . . . . Recycled Matter . | . . . . Retrieved Matter . | . . . . Retrieved Components . | . . . . Parts Scanalyzed . | . . . . Part Schematics Acquired . | . . . . Parts Damaged . | . . . . Bothacking | -11 -10 -9 -8 ------------ Run | Yrd Mat Mat Mat Used RIF Installer . | . . . . Robots Hacked 1 | . . . 1 Non-combat . | . . . . Combat 1 | . . . 1 Robot Hacks Applied 1 | . . . 1 parse_system 1 | . . . 1 Relay Couplers Released . | . . . . Fabnet Peak Effective % . | . . . . Robots Rewired . | . . . . Allies Hacked . | . . . . Hacks Repelled . | . . . . Allies | -11 -10 -9 -8 -------- Run | Yrd Mat Mat Mat Total Allies . | . . . . Largest Group . | . . . . Highest-Rated Group . | . . . . Highest-Rated Ally . | . . . . Total Orders . | . . . . Ally Attacks . | . . . . Total Damage . | . . . . Kills . | . . . . Allies Corrupted . | . . . . Allies Melted . | . . . . Intel | -11 -10 -9 -8 ------- Run | Yrd Mat Mat Mat Robot Analysis Total . | . . . . Derelict Logs Recovered . | . . . . Drone Launches . | . . . . Drone Recoveries . | . . . . Exploration | -11 -10 -9 -8 ------------- Run | Yrd Mat Mat Mat Turns Passed 1335 | 91 328 657 259 Spaces Moved 666 | 70 133 343 120 Core 18 | 15 . . 3 Treads . | . . . . Legs 225 | 55 133 37 . Wheels . | . . . . Hover 423 | . . 306 117 Flight . | . . . . Fastest Speed 50 | 50 120 172 108 Average Speed 169 | 105 224 173 135 Slowest Speed 900 | 120 260 190 900 Overloaded Moves . | . . . . Propulsion Burnouts . | . . . . Robots Hopped . | . . . . Cave-ins Triggered . | . . . . Exploration Rate (%) 18 | 7 23 25 17 Regions Visited 3 Branch Regions . Pre-discovered Areas . | . . . . Known Exits Taken . | . . . . Unknown Exits Taken 3 | 1 1 1 . Scrap Searched . | . . . . Spaces Dug . | . . . . Terrain Destroyed 64 | . . . 64 Melee . | . . . . Projectile . | . . . . AOE 64 | . . . 64 Terrain Rammed . | . . . . Walls Destroyed . | . . . . Machines Disabled . | . . . . Actions | -11 -10 -9 -8 --------- Run | Yrd Mat Mat Mat Total 789 | 84 153 377 175 Wait 23 | . . 6 17 Move 663 | 69 132 342 120 Hop . | . . . . Pick Up 25 | 8 7 6 4 Fast Attach . | . . . . Attach 15 | 5 4 2 4 Detach . | . . . . Swap 6 | . 1 3 2 Drop 6 | . 3 3 . Fire 47 | 2 5 15 25 Melee 3 | . . . 3 Ram . | . . . . Kick 1 | . 1 . . Crush . | . . . . Escape Stasis . | . . . . Rewire . | . . . . Trap . | . . . . Miscellaneous . | . . . . Route ------- -11/Scrapyard -10/Materials -9/Materials -8/Materials History --------- Turn | Location | Event 2 | -11/Scrapyard | Met Revision 17 64 | -11/Scrapyard | Discovered new exit (range 8) 92 | -11/Scrapyard | Entered Materials 302 | -10/Materials | Build established: Mutant 409 | -10/Materials | Discovered new exit (range 4) 420 | -10/Materials | Entered another Materials area 420 | -9/Materials | Evolved 2 slots: Propulsion x1, Utility x1 1055 | -9/Materials | Discovered new exit (range 14) 1077 | -9/Materials | Entered another Materials area 1077 | -8/Materials | Evolved 2 slots: Propulsion x1, Weapon x1 1336 | -8/Materials | Self-destructed Last Messages --------------- U-05 Engineer lays Concrete. Slug penetrates Wall. U-05 Engineer lays Concrete. K-01 Serf collects debris. U-05 Engineer lays Concrete. Critical hit (Burn: +37). Penetrated by Slug. Flak Cannon destroyed. U-05 Engineer lays Concrete. K-01 Serf collects debris. U-05 Engineer lays Concrete. R-06 Scavenger collects Com. Wheel. Penetrated by Slug. U-05 Engineer lays Concrete. K-01 Serf collects debris. U-05 Engineer lays Concrete. Penetrated by Slug. U-05 Engineer lays Concrete. R-06 Scavenger collects Wheel. U-05 Engineer lays Concrete. Map ----- +----------------------------------------------------+ | ???????# # #??????????# #??????????? | | ???????# # #??????????# #??????????? | | ######## + #??????????# #??????????? | | # ]#??????????# #??????????? | | # #??????????# #??????????? | | ########??????????# ! #??????????? | | ######## #?????????????????#! #??????????? | | ???????# #?????????????????# [ = #??????????? | | ???????# #?????????????????#####+####??????????? | | ######## ##################### *[= #???????????? | | ! #???????????? | | T #???????????? | | ! #???????????? | | #########+#### ##+########## #???????????? | | ????# ? % ] #??????#######???????????? | | ????? = # ! #????????????????????????? | | ????# = #????????????????????????? | | ????# """ [[ # """#????????????????????????? | | ????# """ [ # #! """#????????????????????????? | | ????# """ # # """#?########???????????????? | | ????# # " "#? ##??????????????? | | ????# ## #??????????????? | | ??????##### # #??????????????? | | ???############ u ## #??????????????? | | =# #??????????????? | | r @ #??????????????? | | ^ % k = #??????????????? | | ? #### # # =r g ! #??????????????? | | ???????#### # *%# #??????????????? | | ??????????#### !!!!**##g# hw !#??????????????? | | ????????????####!!!!**## #####/####??????????????? | | ???????????????#########a#???? #?????????????????? | | ????????????????###????# #?????#?????????????????? | | ???????????????????????# #???????????????????????? | | ???????????????????????# #???????????????????????? | | ???????????????????????? #???????????????????????? | | ???????????????????????? ????????????????????????? | | ???????????????????????? ????????????????????????? | | ???????????????????????? ????????????????????????? | | ????????????????????????#????????????????????????? | | ?????????????????????????????????????????????????? | | ?????????????????????????????????????????????????? | | ?????????????????????????????????????????????????? | | ?????????????????????????????????????????????????? | | ?????????????????????????????????????????????????? | | ?????????????????????????????????????????????????? | | ?????????????????????????????????????????????????? | | ?????????????????????????????????????????????????? | | ?????????????????????????????????????????????????? | | ?????????????????????????????????????????????????? | +----------------------------------------------------+ Best States ------------- Heat Dissipation 31 Energy Generation 10 Energy Capacity 250 Matter Stores 450 Matter Capacity 450 Sight Range 16 Terrain Scan Density 10 Resistance: KI 20 Resistance: TH 20 Resistance: EX 20 Resistance: EM 20 Resistance: I 20 Resistance: S 20 Resistance: P 20 Evasion (%) 55 Targeting Accuracy 5 Offensive Hacking 10 Item Schematics ----------------- None Robot Schematics ------------------ None Fabricated ------------ Nothing Alien Tech Used ----------------- None Achievements -------------- Crack Shot Uninvited Guest Challenges ------------ None Game ------ Seed HardenedLinearDrive Manual? 0 Play Time 00:15:30 Cumulative 0.2 hours Start 2024.04.22 @ 09:39:06 End 2024.04.22 @ 09:55:27 Sessions 1 Manual Loads 0 Difficulty Adventurer Special Mode None Game No. 1 Rogue 0 Adventurer 1 Explorer 0 Win Type - Total 0 Types 0/0/0/0/0/0/0/0/0 Lore% 0 Gallery% 1 Achievement% 0 Wizard Run 0 Options --------- Layout 1 ASCII 0 Keyboard 0 Movement Numpad Keybinds 0 Fullscreen 1 Font 24/Smallcaps Map View 50x35 Zoom Use 0% Tactical HUD 0 Map Filters NONE Filters NONE Steam 1 RUN: 5464e414-8f45-48ee-bde9-ccecc902251d